[Event "2. Itzehoer Schach Open"]
[Site "Itzehoe, Germany"]
[Date "2023.05.01"]
[Round "5.16"]
[White "Lebiedz, Oliver"]
[Black "Recklies, Volker"]
[Result "1-0"]
[TimeControl "90 min / 40 Züge + 30 min + 30 Sek pro Zug"]
[WhiteElo "1921"]
[BlackElo "1701"]

1. e4 {[%clk 01:30:57]} {[%emt 00:00:03]} c6 {[%clk 01:30:54]} {[%emt
00:00:07]} 2. d4 {[%clk 01:31:22]} {[%emt 00:00:04]} d5 {[%clk 01:31:19]}
{[%emt 00:00:06]} 3. e5 {[%clk 01:31:48]} {[%emt 00:00:04]} Bf5 {[%clk
01:31:36]} {[%emt 00:00:12]} 4. h4 {[%clk 01:32:06]} {[%emt 00:00:12]} h6
{[%clk 01:30:25]} {[%emt 00:01:41]} 5. g4 {[%clk 01:32:21]} {[%emt 00:00:15]}
Bd7 {[%clk 01:30:29]} {[%emt 00:00:26]} 6. c3 {[%clk 01:24:45]} {[%emt
00:08:06]} Qc7 {[%clk 01:23:21]} {[%emt 00:07:38]} 7. Be3 {[%clk 01:21:41]}
{[%emt 00:03:33]} Na6 {[%clk 01:14:23]} {[%emt 00:09:28]} 8. b4 {[%clk
01:18:36]} {[%emt 00:03:35]} g6 {[%clk 01:03:42]} {[%emt 00:11:11]} 9. Bd3
{[%clk 01:17:36]} {[%emt 00:01:30]} e6 {[%clk 01:02:42]} {[%emt 00:01:31]} 10.
Ne2 {[%clk 00:55:40]} {[%emt 00:22:25]} Ne7 {[%clk 01:02:34]} {[%emt 00:00:37]}
11. Ng3 {[%clk 00:52:32]} {[%emt 00:03:39]} Bg7 {[%clk 00:58:47]} {[%emt
00:04:17]} 12. Qe2 {[%clk 00:43:51]} {[%emt 00:09:11]} Nb8 {[%clk 00:51:21]}
{[%emt 00:07:57]} 13. Qc2 {[%clk 00:30:09]} {[%emt 00:14:12]} Rf8 {[%clk
00:48:35]} {[%emt 00:03:15]} 14. Nd2 {[%clk 00:29:36]} {[%emt 00:01:03]} Kd8
{[%clk 00:48:14]} {[%emt 00:00:51]} 15. Nb3 {[%clk 00:29:25]} {[%emt 00:00:40]}
Be8 {[%clk 00:43:32]} {[%emt 00:05:12]} 16. O-O-O {[%clk 00:26:00]} {[%emt
00:03:56]} Nd7 {[%clk 00:40:17]} {[%emt 00:03:45]} 17. f4 {[%clk 00:25:51]}
{[%emt 00:00:39]} Nb6 {[%clk 00:37:25]} {[%emt 00:03:22]} 18. f5 {[%clk
00:16:58]} {[%emt 00:09:23]} gxf5 {[%clk 00:33:02]} {[%emt 00:04:52]} 19. gxf5
{[%clk 00:17:15]} {[%emt 00:00:14]} exf5 {[%clk 00:28:43]} {[%emt 00:04:49]} 20.
Nh5 {[%clk 00:16:10]} {[%emt 00:01:33]} f4 {[%clk 00:19:10]} {[%emt 00:10:05]}
21. Bxf4 {[%clk 00:16:00]} {[%emt 00:00:40]} Ng6 {[%clk 00:19:34]} {[%emt
00:00:06]} 22. Bh2 {[%clk 00:15:37]} {[%emt 00:00:53]} Bh8 {[%clk 00:16:51]}
{[%emt 00:03:13]} 23. Rde1 {[%clk 00:13:42]} {[%emt 00:02:25]} Qe7 {[%clk
00:15:21]} {[%emt 00:01:59]} 24. e6 {[%clk 00:11:16]} {[%emt 00:02:57]} Nxh4
{[%clk 00:12:20]} {[%emt 00:03:30]} 25. Nf4 {[%clk 00:07:02]} {[%emt 00:04:44]}
Nf3 {[%clk 00:11:18]} {[%emt 00:01:33]} 26. Re2 {[%clk 00:05:33]} {[%emt
00:01:59]} Kc8 {[%clk 00:08:56]} {[%emt 00:02:52]} 27. Bg3 {[%clk 00:05:12]}
{[%emt 00:00:51]} Qg5 {[%clk 00:08:57]} {[%emt 00:00:29]} 28. e7 {[%clk
00:05:04]} {[%emt 00:00:38]} Rg8 {[%clk 00:09:06]} {[%emt 00:00:21]} 29. Rg2
{[%clk 00:05:04]} {[%emt 00:00:30]} Qxe7 {[%clk 00:07:14]} {[%emt 00:02:22]} 30.
Qf2 {[%clk 00:04:23]} {[%emt 00:01:10]} Ng5 {[%clk 00:06:18]} {[%emt 00:01:26]}
31. Bh4 {[%clk 00:03:46]} {[%emt 00:01:08]} Bf6 {[%clk 00:06:00]} {[%emt
00:00:49]} 32. Nh5 {[%clk 00:03:19]} {[%emt 00:00:57]} Nd7 {[%clk 00:04:44]}
{[%emt 00:01:46]} 33. Nxf6 {[%clk 00:02:20]} {[%emt 00:01:30]} Qxf6 {[%clk
00:04:37]} {[%emt 00:00:36]} 34. Bf5 {[%clk 00:02:25]} {[%emt 00:00:24]} Kd8
{[%clk 00:04:50]} {[%emt 00:00:18]} 35. Re1 {[%clk 00:01:42]} {[%emt 00:01:12]}
Nf8 {[%clk 00:02:32]} {[%emt 00:02:49]} 36. Nc5 {[%clk 00:01:58]} {[%emt
00:00:14]} b6 {[%clk 00:02:30]} {[%emt 00:00:32]} 37. Nb7+ {[%clk 00:01:44]}
{[%emt 00:00:45]} Kc7 {[%clk 00:02:32]} {[%emt 00:00:27]} 38. Qf4+ {[%clk
00:02:04]} {[%emt 00:00:10]} Kxb7 {[%clk 00:02:34]} {[%emt 00:00:27]} 39. Bc8+
{[%clk 00:02:29]} {[%emt 00:00:05]} Rxc8 {[%clk 00:02:50]} {[%emt 00:00:15]} 40.
Qxf6 {[%clk 00:02:56]} {[%emt 00:00:03]} Nfe6 {[%clk 00:02:45]} {[%emt
00:00:35]} 41. Qxh6 {[%clk 00:02:49]} {[%emt 00:00:36]} Rg6 {[%clk 00:01:51]}
{[%emt 00:01:24]} 42. Qh5 {[%clk 00:24:02]} {[%emt 00:09:17]} Nf4 {[%clk
00:28:30]} {[%emt 00:03:52]} 43. Re7+ {[%clk 00:24:26]} {[%emt 00:00:07]} Ka6
{[%clk 00:24:22]} {[%emt 00:04:37]} 44. Qd1 {[%clk 00:24:31]} {[%emt 00:00:25]}
c5 {[%clk 00:23:56]} {[%emt 00:00:56]} 45. Rxg5 {[%clk 00:23:53]} {[%emt
00:01:07]} Rh6 {[%clk 00:23:59]} {[%emt 00:00:28]} 46. Qf1+ {[%clk 00:24:03]}
{[%emt 00:00:20]} 1-0

[Event "2. Itzehoer Schach Open"]
[Site "Itzehoe, Germany"]
[Date "2023.05.01"]
[Round "5.24"]
[White "Ploog, Jakob"]
[Black "Zoellner, Bente"]
[Result "0-1"]
[TimeControl "90 min / 40 Züge + 30 min + 30 Sek pro Zug"]
[WhiteElo "1392"]
[BlackElo "1805"]

1. e4 {[%clk 01:30:53]} {[%emt 00:00:07]} c5 {[%clk 00:55:13]} {[%emt
00:35:47]} 2. Nf3 {[%clk 01:30:27]} {[%emt 00:00:56]} Nc6 {[%clk 00:55:32]}
{[%emt 00:00:11]} 3. Bb5 {[%clk 01:30:21]} {[%emt 00:00:36]} Nf6 {[%clk
00:55:40]} {[%emt 00:00:22]} 4. Nc3 {[%clk 01:30:33]} {[%emt 00:00:18]} d6
{[%clk 00:55:34]} {[%emt 00:00:36]} 5. d4 {[%clk 01:30:41]} {[%emt 00:00:22]}
cxd4 {[%clk 00:55:49]} {[%emt 00:00:15]} 6. Nxd4 {[%clk 01:28:20]} {[%emt
00:02:51]} Bd7 {[%clk 00:55:40]} {[%emt 00:00:38]} 7. O-O {[%clk 01:28:03]}
{[%emt 00:00:47]} g6 {[%clk 00:55:15]} {[%emt 00:00:55]} 8. f4 {[%clk
01:20:11]} {[%emt 00:08:22]} Bg7 {[%clk 00:52:08]} {[%emt 00:03:37]} 9. e5
{[%clk 01:10:30]} {[%emt 00:10:11]} dxe5 {[%clk 00:48:49]} {[%emt 00:03:49]} 10.
Nxc6 {[%clk 00:58:25]} {[%emt 00:12:36]} bxc6 {[%clk 00:46:07]} {[%emt
00:03:10]} 11. Bc4 {[%clk 00:53:43]} {[%emt 00:05:13]} exf4 {[%clk 00:43:57]}
{[%emt 00:02:40]} 12. Rxf4 {[%clk 00:51:30]} {[%emt 00:02:43]} O-O {[%clk
00:41:20]} {[%emt 00:03:07]} 13. Be3 {[%clk 00:46:55]} {[%emt 00:05:05]} Qc7
{[%clk 00:34:54]} {[%emt 00:06:56]} 14. Qf3 {[%clk 00:38:47]} {[%emt 00:08:38]}
Bf5 {[%clk 00:24:00]} {[%emt 00:11:25]} 15. Re1 {[%clk 00:37:28]} {[%emt
00:01:47]} Rad8 {[%clk 00:21:18]} {[%emt 00:03:13]} 16. Rh4 {[%clk 00:37:08]}
{[%emt 00:00:49]} Ng4 {[%clk 00:18:00]} {[%emt 00:03:50]} 17. Rxg4 {[%clk
00:29:34]} {[%emt 00:08:04]} Bxg4 {[%clk 00:18:22]} {[%emt 00:00:08]} 18. Qxg4
{[%clk 00:29:55]} {[%emt 00:00:08]} Qd7 {[%clk 00:18:10]} {[%emt 00:00:42]} 19.
Qh4 {[%clk 00:22:48]} {[%emt 00:07:37]} Bd4 {[%clk 00:11:41]} {[%emt 00:06:59]}
20. Ne4 {[%clk 00:14:34]} {[%emt 00:08:44]} Bxe3+ {[%clk 00:10:05]} {[%emt
00:02:06]} 21. Rxe3 {[%clk 00:14:46]} {[%emt 00:00:17]} Qd4 {[%clk 00:08:45]}
{[%emt 00:01:51]} 22. Qh6 {[%clk 00:14:38]} {[%emt 00:00:38]} Qxc4 {[%clk
00:07:56]} {[%emt 00:01:20]} 23. Ng5 {[%clk 00:13:59]} {[%emt 00:01:08]} Rd1+
{[%clk 00:07:46]} {[%emt 00:00:40]} 24. Kf2 {[%clk 00:14:11]} {[%emt 00:00:19]}
Qf4+ {[%clk 00:07:50]} {[%emt 00:00:25]} 25. Rf3 {[%clk 00:14:11]} {[%emt
00:00:30]} Qd4+ {[%clk 00:07:48]} {[%emt 00:00:31]} 26. Kg3 {[%clk 00:14:25]}
{[%emt 00:00:16]} Qg7 {[%clk 00:07:35]} {[%emt 00:00:44]} 27. Qh4 {[%clk
00:12:15]} {[%emt 00:02:40]} Rd4 {[%clk 00:07:23]} {[%emt 00:00:42]} 28. Rf4
{[%clk 00:07:57]} {[%emt 00:04:48]} Rxf4 {[%clk 00:06:40]} {[%emt 00:01:13]} 29.
Qxf4 {[%clk 00:08:15]} {[%emt 00:00:11]} Qf6 {[%clk 00:05:33]} {[%emt
00:01:37]} 30. Qe3 {[%clk 00:07:35]} {[%emt 00:01:11]} Rd8 {[%clk 00:05:32]}
{[%emt 00:00:32]} 31. Ne4 {[%clk 00:07:38]} {[%emt 00:00:26]} Qe5+ {[%clk
00:05:31]} {[%emt 00:00:29]} 32. Kf3 {[%clk 00:07:23]} {[%emt 00:00:47]} f5
{[%clk 00:05:23]} {[%emt 00:00:38]} 33. Qb3+ {[%clk 00:07:40]} {[%emt
00:00:13]} Qd5 {[%clk 00:05:04]} {[%emt 00:00:50]} 34. Qxd5+ {[%clk 00:07:52]}
{[%emt 00:00:17]} cxd5 {[%clk 00:05:25]} {[%emt 00:00:10]} 35. Nd2 {[%clk
00:07:52]} {[%emt 00:00:29]} e5 {[%clk 00:05:45]} {[%emt 00:00:10]} 36. g3
{[%clk 00:07:26]} {[%emt 00:00:56]} Kf7 {[%clk 00:06:02]} {[%emt 00:00:13]} 37.
h4 {[%clk 00:07:23]} {[%emt 00:00:33]} Ke6 {[%clk 00:06:03]} {[%emt 00:00:29]}
38. Nb3 {[%clk 00:07:41]} {[%emt 00:00:12]} Rc8 {[%clk 00:05:40]} {[%emt
00:00:53]} 39. c3 {[%clk 00:08:02]} {[%emt 00:00:09]} h6 {[%clk 00:05:29]}
{[%emt 00:00:41]} 40. Na5 {[%clk 00:06:35]} {[%emt 00:01:57]} Rc7 {[%clk
00:05:46]} {[%emt 00:00:13]} 41. Ke3 {[%clk 00:06:12]} {[%emt 00:00:53]} g5
{[%clk 00:06:04]} {[%emt 00:00:12]} 42. h5 {[%clk 00:06:13]} {[%emt 00:00:28]}
f4+ {[%clk 00:06:19]} {[%emt 00:00:16]} 43. gxf4 {[%clk 00:06:31]} {[%emt
00:00:12]} gxf4+ {[%clk 00:06:38]} {[%emt 00:00:12]} 44. Kf3 {[%clk 00:06:36]}
{[%emt 00:00:24]} Kf5 {[%clk 00:06:24]} {[%emt 00:00:44]} 45. b3 {[%clk
00:06:29]} {[%emt 00:00:38]} Rxc3+ {[%clk 00:06:37]} {[%emt 00:00:17]} 0-1

[Event "2. Itzehoer Schach Open"]
[Site "Itzehoe, Germany"]
[Date "2023.05.01"]
[Round "5.4"]
[White "Pitic, Jasmin"]
[Black "Stiller, Maximilian"]
[Result "1-0"]
[TimeControl "90 min / 40 Züge + 30 min + 30 Sek pro Zug"]
[WhiteElo "2067"]
[BlackElo "1657"]

1. d4 {[%clk 01:30:59]} Nf6 {[%clk 01:30:53]} {[%emt 00:00:08]} 2. c4 {[%clk
01:31:19]} {[%emt 00:00:10]} g6 {[%clk 01:30:43]} {[%emt 00:00:39]} 3. Nc3
{[%clk 01:31:44]} {[%emt 00:00:05]} d5 {[%clk 01:30:44]} {[%emt 00:00:29]} 4.
Nf3 {[%clk 01:31:21]} {[%emt 00:00:53]} Bg7 {[%clk 01:30:48]} {[%emt 00:00:26]}
5. Bg5 {[%clk 01:31:32]} {[%emt 00:00:19]} Ne4 {[%clk 01:30:27]} {[%emt
00:00:51]} 6. Bh4 {[%clk 01:31:54]} {[%emt 00:00:08]} Nxc3 {[%clk 01:30:25]}
{[%emt 00:00:32]} 7. bxc3 {[%clk 01:32:22]} {[%emt 00:00:02]} c5 {[%clk
01:30:38]} {[%emt 00:00:17]} 8. cxd5 {[%clk 01:32:32]} {[%emt 00:00:21]} Qxd5
{[%clk 01:30:50]} {[%emt 00:00:18]} 9. e3 {[%clk 01:32:53]} {[%emt 00:00:09]}
Nc6 {[%clk 01:30:14]} {[%emt 00:01:06]} 10. Qa4 {[%clk 01:23:27]} {[%emt
00:09:56]} cxd4 {[%clk 01:23:00]} {[%emt 00:07:44]} 11. cxd4 {[%clk 01:23:08]}
{[%emt 00:00:49]} O-O {[%clk 01:19:13]} {[%emt 00:04:17]} 12. Be2 {[%clk
01:21:46]} {[%emt 00:01:52]} Bf5 {[%clk 01:16:43]} {[%emt 00:03:00]} 13. O-O
{[%clk 01:20:48]} {[%emt 00:01:28]} a6 {[%clk 01:15:25]} {[%emt 00:01:48]} 14.
Rfd1 {[%clk 01:20:16]} {[%emt 00:01:01]} Rac8 {[%clk 01:14:55]} {[%emt
00:01:00]} 15. Rac1 {[%clk 01:20:26]} {[%emt 00:00:20]} Qd6 {[%clk 01:10:40]}
{[%emt 00:04:45]} 16. a3 {[%clk 01:14:50]} {[%emt 00:06:06]} h6 {[%clk
01:01:03]} {[%emt 00:10:07]} 17. h3 {[%clk 01:04:44]} {[%emt 00:10:37]} e6
{[%clk 00:51:34]} {[%emt 00:09:59]} 18. Nd2 {[%clk 00:59:35]} {[%emt 00:05:38]}
g5 {[%clk 00:49:24]} {[%emt 00:02:40]} 19. Bg3 {[%clk 00:58:30]} {[%emt
00:01:35]} Qd8 {[%clk 00:49:48]} {[%emt 00:00:07]} 20. Bf3 {[%clk 00:53:19]}
{[%emt 00:05:41]} Bd3 {[%clk 00:39:48]} {[%emt 00:10:28]} 21. Qb3 {[%clk
00:50:21]} {[%emt 00:03:29]} Bb5 {[%clk 00:32:58]} {[%emt 00:07:20]} 22. a4
{[%clk 00:49:00]} {[%emt 00:01:52]} Na5 {[%clk 00:33:09]} {[%emt 00:00:19]} 23.
Rxc8 {[%clk 00:48:38]} {[%emt 00:00:52]} Qxc8 {[%clk 00:33:28]} {[%emt
00:00:11]} 24. Qb4 {[%clk 00:48:23]} {[%emt 00:00:45]} Nc6 {[%clk 00:32:51]}
{[%emt 00:01:07]} 25. Qa3 {[%clk 00:48:05]} {[%emt 00:00:48]} Bxa4 {[%clk
00:28:49]} {[%emt 00:04:32]} 26. Qxa4 {[%clk 00:48:23]} {[%emt 00:00:12]} b5
{[%clk 00:29:13]} {[%emt 00:00:06]} 27. Qa3 {[%clk 00:45:49]} {[%emt 00:03:04]}
Qb7 {[%clk 00:25:03]} {[%emt 00:04:40]} 28. Rc1 {[%clk 00:45:19]} {[%emt
00:01:00]} Rc8 {[%clk 00:25:09]} {[%emt 00:00:24]} 29. Qc5 {[%clk 00:44:01]}
{[%emt 00:01:47]} Bf8 {[%clk 00:23:21]} {[%emt 00:02:17]} 30. Bxc6 {[%clk
00:44:16]} {[%emt 00:00:16]} 1-0

[Event "2. Itzehoer Schach Open"]
[Site "Itzehoe, Germany"]
[Date "2023.05.01"]
[Round "5.31"]
[White "Harten, Jan"]
[Black "Lorenz, Felix"]
[Result "1-0"]
[TimeControl "90 min / 40 Züge + 30 min + 30 Sek pro Zug"]
[WhiteElo "1819"]
[BlackElo "1128"]

1. e4 {[%clk 01:30:56]} {[%emt 00:00:03]} e5 {[%clk 01:30:58]} {[%emt
00:00:03]} 2. f4 {[%clk 01:31:18]} {[%emt 00:00:08]} d5 {[%clk 01:31:15]}
{[%emt 00:00:13]} 3. exd5 {[%clk 01:31:38]} {[%emt 00:00:10]} c6 {[%clk
01:31:43]} {[%emt 00:00:03]} 4. d3 {[%clk 01:29:25]} {[%emt 00:02:43]} Bc5
{[%clk 01:28:58]} {[%emt 00:03:15]} 5. Nf3 {[%clk 01:29:35]} {[%emt 00:00:19]}
Bg4 {[%clk 01:27:18]} {[%emt 00:02:11]} 6. fxe5 {[%clk 01:27:45]} {[%emt
00:02:20]} Qxd5 {[%clk 01:22:34]} {[%emt 00:05:11]} 7. Bf4 {[%clk 01:18:21]}
{[%emt 00:09:57]} Bxf3 {[%clk 01:15:02]} {[%emt 00:08:02]} 8. Qxf3 {[%clk
01:18:07]} {[%emt 00:00:44]} Qd4 {[%clk 01:07:50]} {[%emt 00:07:40]} 9. c3
{[%clk 01:16:25]} {[%emt 00:02:14]} Qd8 {[%clk 01:03:48]} {[%emt 00:04:31]} 10.
d4 {[%clk 01:16:34]} {[%emt 00:00:23]} Be7 {[%clk 01:02:53]} {[%emt 00:01:24]}
11. Bc4 {[%clk 01:16:33]} {[%emt 00:00:31]} Qb6 {[%clk 00:59:22]} {[%emt
00:04:02]} 12. O-O {[%clk 01:04:28]} {[%emt 00:12:35]} f6 {[%clk 00:53:09]}
{[%emt 00:06:42]} 13. Qe2 {[%clk 00:59:46]} {[%emt 00:05:12]} g5 {[%clk
00:47:46]} {[%emt 00:05:54]} 14. Bxg8 {[%clk 00:58:50]} {[%emt 00:01:25]} Rxg8
{[%clk 00:48:07]} {[%emt 00:00:10]} 15. exf6 {[%clk 00:58:19]} {[%emt
00:01:00]} Qd8 {[%clk 00:47:25]} {[%emt 00:01:13]} 16. f7+ {[%clk 00:58:22]}
{[%emt 00:00:27]} 1-0

[Event "2. Itzehoer Schach Open"]
[Site "Itzehoe, Germany"]
[Date "2023.05.01"]
[Round "5.11"]
[White "Freitag, Christian"]
[Black "Hieke, Jonas"]
[Result "1-0"]
[TimeControl "90 min / 40 Züge + 30 min + 30 Sek pro Zug"]
[WhiteElo "1886"]
[BlackElo "1584"]

1. e4 {[%clk 01:30:56]} {[%emt 00:00:04]} e5 {[%clk 01:30:56]} {[%emt
00:00:04]} 2. Nf3 {[%clk 01:31:22]} {[%emt 00:00:04]} Nc6 {[%clk 01:31:22]}
{[%emt 00:00:05]} 3. Bc4 {[%clk 01:31:42]} {[%emt 00:00:10]} Nf6 {[%clk
01:31:47]} {[%emt 00:00:05]} 4. d3 {[%clk 01:32:07]} {[%emt 00:00:04]} Bc5
{[%clk 01:32:07]} {[%emt 00:00:10]} 5. Nc3 {[%clk 01:32:32]} {[%emt 00:00:06]}
d6 {[%clk 01:32:32]} {[%emt 00:00:05]} 6. h3 {[%clk 01:32:51]} {[%emt
00:00:10]} Na5 {[%clk 01:32:34]} {[%emt 00:00:28]} 7. Bb3 {[%clk 01:32:58]}
{[%emt 00:00:24]} h6 {[%clk 01:32:19]} {[%emt 00:00:44]} 8. Be3 {[%clk
01:33:13]} {[%emt 00:00:15]} Bxe3 {[%clk 01:32:17]} {[%emt 00:00:32]} 9. fxe3
{[%clk 01:33:37]} {[%emt 00:00:07]} Nxb3 {[%clk 01:32:35]} {[%emt 00:00:11]} 10.
axb3 {[%clk 01:34:02]} {[%emt 00:00:04]} O-O {[%clk 01:31:45]} {[%emt
00:01:19]} 11. O-O {[%clk 01:34:20]} {[%emt 00:00:14]} Bd7 {[%clk 01:30:34]}
{[%emt 00:01:40]} 12. Qe1 {[%clk 01:34:28]} {[%emt 00:00:22]} Bc6 {[%clk
01:29:12]} {[%emt 00:01:51]} 13. g4 {[%clk 01:31:18]} {[%emt 00:03:42]} g5
{[%clk 01:18:55]} {[%emt 00:10:46]} 14. Qf2 {[%clk 01:28:54]} {[%emt 00:02:54]}
Nd7 {[%clk 01:13:32]} {[%emt 00:05:54]} 15. Kg2 {[%clk 01:28:04]} {[%emt
00:01:19]} Kg7 {[%clk 01:10:00]} {[%emt 00:04:00]} 16. Ne2 {[%clk 01:23:45]}
{[%emt 00:04:50]} d5 {[%clk 00:44:32]} {[%emt 00:25:59]} 17. exd5 {[%clk
01:23:23]} {[%emt 00:00:52]} Bxd5 {[%clk 00:44:53]} {[%emt 00:00:09]} 18. e4
{[%clk 01:22:47]} {[%emt 00:01:06]} Be6 {[%clk 00:45:04]} {[%emt 00:00:19]} 19.
Rxa7 {[%clk 01:21:16]} {[%emt 00:02:02]} Rxa7 {[%clk 00:45:14]} {[%emt
00:00:19]} 20. Qxa7 {[%clk 01:21:41]} {[%emt 00:00:05]} b6 {[%clk 00:45:28]}
{[%emt 00:00:15]} 21. Ng3 {[%clk 01:19:55]} {[%emt 00:02:16]} f6 {[%clk
00:44:55]} {[%emt 00:01:04]} 22. d4 {[%clk 01:11:45]} {[%emt 00:08:41]} exd4
{[%clk 00:35:35]} {[%emt 00:09:49]} 23. Nxd4 {[%clk 01:12:07]} {[%emt
00:00:08]} Bf7 {[%clk 00:35:51]} {[%emt 00:00:13]} 24. Rd1 {[%clk 01:06:00]}
{[%emt 00:06:38]} Qb8 {[%clk 00:28:43]} {[%emt 00:07:38]} 25. Qxb8 {[%clk
00:50:05]} {[%emt 00:16:24]} Nxb8 {[%clk 00:29:01]} {[%emt 00:00:12]} 26. Nb5
{[%clk 00:50:30]} {[%emt 00:00:06]} Kg6 {[%clk 00:21:07]} {[%emt 00:08:24]} 27.
Rd2 {[%clk 00:43:20]} {[%emt 00:07:40]} c6 {[%clk 00:20:48]} {[%emt 00:00:49]}
28. Nc3 {[%clk 00:43:12]} {[%emt 00:00:39]} Na6 {[%clk 00:19:06]} {[%emt
00:02:11]} 29. Rd6 {[%clk 00:38:03]} {[%emt 00:05:39]} Nb4 {[%clk 00:16:51]}
{[%emt 00:02:44]} 30. Nh5 {[%clk 00:36:12]} {[%emt 00:02:21]} Be8 {[%clk
00:16:47]} {[%emt 00:00:33]} 31. e5 {[%clk 00:35:51]} {[%emt 00:00:52]} Nxc2
{[%clk 00:08:54]} {[%emt 00:08:23]} 32. Nxf6 {[%clk 00:36:10]} {[%emt
00:00:11]} Kf7 {[%clk 00:09:15]} {[%emt 00:00:08]} 33. Na4 {[%clk 00:26:53]}
{[%emt 00:09:48]} b5 {[%clk 00:07:56]} {[%emt 00:01:49]} 34. Nc5 {[%clk
00:27:16]} {[%emt 00:00:07]} Nb4 {[%clk 00:05:33]} {[%emt 00:02:53]} 35. Kf3
{[%clk 00:22:29]} {[%emt 00:05:17]} Nd5 {[%clk 00:02:59]} {[%emt 00:03:04]} 36.
Ke4 {[%clk 00:17:17]} {[%emt 00:05:42]} Nxf6+ {[%clk 00:03:05]} {[%emt
00:00:25]} 37. Rxf6+ {[%clk 00:17:39]} {[%emt 00:00:07]} Kg7 {[%clk 00:03:13]}
{[%emt 00:00:21]} 38. Ne6+ {[%clk 00:17:53]} {[%emt 00:00:16]} 1-0

[Event "2. Itzehoer Schach Open"]
[Site "Itzehoe, Germany"]
[Date "2023.05.01"]
[Round "5.34"]
[White "Knudsen, Finn Luca"]
[Black "Junge, Julia Marie"]
[Result "0-1"]
[TimeControl "90 min / 40 Züge + 30 min + 30 Sek pro Zug"]
[WhiteElo "929"]
[BlackElo "1367"]

1. e4 {[%clk 01:30:30]} {[%emt 01:30:44]} e5 {[%clk 01:29:03]} {[%emt
00:02:00]} 2. Nf3 {[%clk 01:31:20]} {[%emt 00:00:09]} Nc6 {[%clk 01:29:24]}
{[%emt 00:00:10]} 3. Bc4 {[%clk 01:31:14]} {[%emt 00:00:35]} Bc5 {[%clk
01:29:40]} {[%emt 00:00:14]} 4. d3 {[%clk 01:30:54]} {[%emt 00:00:50]} Nf6
{[%clk 01:29:55]} {[%emt 00:00:15]} 5. Nc3 {[%clk 01:29:59]} {[%emt 00:01:25]}
d6 {[%clk 01:29:42]} {[%emt 00:00:43]} 6. Nd5 {[%clk 01:28:35]} {[%emt
00:01:54]} h6 {[%clk 01:28:07]} {[%emt 00:02:06]} 7. Nxf6+ {[%clk 01:27:41]}
{[%emt 00:01:23]} Qxf6 {[%clk 01:28:14]} {[%emt 00:00:22]} 8. O-O {[%clk
01:19:46]} {[%emt 00:08:26]} Bg4 {[%clk 01:28:35]} {[%emt 00:00:10]} 9. Be3
{[%clk 01:19:17]} {[%emt 00:01:00]} Nd4 {[%clk 01:28:28]} {[%emt 00:00:37]} 10.
Bxd4 {[%clk 01:18:26]} {[%emt 00:01:20]} Bxd4 {[%clk 01:28:44]} {[%emt
00:00:13]} 11. c3 {[%clk 01:18:37]} {[%emt 00:00:19]} Bb6 {[%clk 01:28:38]}
{[%emt 00:00:36]} 12. d4 {[%clk 01:14:48]} {[%emt 00:04:20]} exd4 {[%clk
01:28:03]} {[%emt 00:01:06]} 13. cxd4 {[%clk 01:13:32]} {[%emt 00:01:45]} Bxf3
{[%clk 01:28:10]} {[%emt 00:00:23]} 14. Qxf3 {[%clk 01:13:07]} {[%emt
00:00:56]} Qxf3 {[%clk 01:28:18]} {[%emt 00:00:22]} 15. gxf3 {[%clk 01:13:19]}
{[%emt 00:00:19]} Bxd4 {[%clk 01:28:38]} {[%emt 00:00:09]} 16. Rab1 {[%clk
01:13:22]} {[%emt 00:00:27]} g5 {[%clk 01:26:51]} {[%emt 00:02:17]} 17. Rfd1
{[%clk 01:13:23]} {[%emt 00:00:29]} Be5 {[%clk 01:26:58]} {[%emt 00:00:22]} 18.
b4 {[%clk 01:12:52]} {[%emt 00:01:01]} h5 {[%clk 01:27:08]} {[%emt 00:00:20]}
19. h3 {[%clk 01:12:30]} {[%emt 00:00:51]} Kd7 {[%clk 01:25:30]} {[%emt
00:02:08]} 20. Bxf7 {[%clk 01:11:12]} {[%emt 00:01:49]} Raf8 {[%clk 01:25:50]}
{[%emt 00:00:10]} 21. Bd5 {[%clk 01:09:51]} {[%emt 00:01:50]} c6 {[%clk
01:25:57]} {[%emt 00:00:24]} 22. Bc4 {[%clk 01:10:10]} {[%emt 00:00:10]} Rxf3
{[%clk 01:26:04]} {[%emt 00:00:23]} 23. Kg2 {[%clk 01:10:24]} {[%emt 00:00:16]}
g4 {[%clk 01:25:58]} {[%emt 00:00:35]} 24. hxg4 {[%clk 01:10:30]} {[%emt
00:00:25]} hxg4 {[%clk 01:26:19]} {[%emt 00:00:09]} 25. Be2 {[%clk 01:10:52]}
{[%emt 00:00:07]} Rh2+ {[%clk 01:26:40]} {[%emt 00:00:09]} 26. Kg1 {[%clk
01:10:37]} {[%emt 00:00:45]} Rfxf2 {[%clk 01:26:59]} {[%emt 00:00:11]} 27.
Bxg4+ {[%clk 01:10:48]} {[%emt 00:00:18]} Kc7 {[%clk 01:27:08]} {[%emt
00:00:23]} 28. Bf5 {[%clk 01:09:58]} {[%emt 00:01:19]} Rxa2 {[%clk 01:25:51]}
{[%emt 00:01:47]} 29. Rf1 {[%clk 01:09:27]} {[%emt 00:01:01]} Rag2# {[%clk
01:26:12]} {[%emt 00:00:06]} 0-1